fUST/lending_fUST_20250206
["ID","MTS","AMOUNT","RATE_DAILY","PERIOD"]
[351910147,1738836426194,-260.43,0.00010959,2]
[351910148,1738836426220,-217.03,0.00010959,2]
[351910149,1738836426245,-180.86,0.00010959,2]
[351910150,1738836426270,-150.71,0.00010959,2]
[351910151,1738836426294,-753.6,0.00010959,2]
[351910152,1738836426320,-500.0,0.00011999,2]
[351910153,1738836426346,-234.76121101,0.00011999,2]
[351910154,1738836426370,-180.65652506,0.00011999,2]
[351910155,1738836426394,-3619.7104116,0.00012,2]
[351910156,1738836431094,-10737.87701996,0.00012,2]
[351910157,1738836441085,-751.80825106,0.00012,2]
[351910158,1738836446097,-676.79026467,0.00012,2]
[351910160,1738836546142,-234.60414598,0.00011879,2]
[351910161,1738836546164,-300.0,0.00011999,2]
[351910162,1738836546185,-113137.60451057,0.00012,2]
[351910163,1738836546206,-24933.77177476,0.00012,2]
[351910164,1738836546233,-1402.75856831,0.00012,2]
[351910165,1738836550124,-606.4123592,0.00012658,2]
[351910166,1738836550146,-823.8464743,0.00012685,2]
[351910167,1738836550168,-292.53626589,0.000129,2]
[351910168,1738836550189,-292.53626587,0.000129,2]
[351910169,1738836550211,-1000.0,0.00013,3]
[351910170,1738836550233,-1000.0,0.00013,13]
[351910171,1738836550254,-78243.7519276,0.00013,2]
[351910172,1738836574114,-277.06826792,0.0001287,2]
[351910173,1738836574136,-1066.21016264,0.00013,2]
[351910320,1738836637828,-999.30379051,0.00013,2]
[351910321,1738836637838,-399.85231682,0.0001305,2]
[351910322,1738836637848,-564.90497598,0.0001315,2]
[351910323,1738836637984,-232.99990287,0.0001315,2]
[351910324,1738836637997,-2.09512115,0.0001315,2]
[351910325,1738836638007,-617.19081287,0.00013361,2]
[351910326,1738836638018,-306.0,0.00013378,2]
[351910327,1738836638028,-226.4670325,0.00013562,2]
[351910328,1738836638037,-300.0,0.00013573,2]
[351910329,1738836638047,-7438.69753278,0.00013574,2]
[351910330,1738836638057,-507.99791894,0.00013673,2]
[351910331,1738836638067,-504.13924722,0.00013673,2]
[351910332,1738836638077,-194.09381098,0.00013673,2]
[351910333,1738836638088,-506.12498987,0.00013673,2]
[351910334,1738836638097,-500.0,0.00013673,2]
[351910335,1738836638107,-500.0,0.00013673,2]
[351910336,1738836638117,-500.0,0.00013673,2]
[351910337,1738836638127,-500.0,0.00013698,2]
[351910338,1738836638137,-500.0,0.00013698,2]
[351910339,1738836638147,-500.0,0.00013698,2]
[351910340,1738836638157,-500.0,0.00013698,2]
[351910341,1738836638167,-500.0,0.00013698,2]
[351910342,1738836638177,-500.0,0.00013698,2]
[351910343,1738836638187,-668.49,0.00013698,2]
[351910344,1738836638197,-500.0,0.00013698,2]
[351910345,1738836638206,-500.0,0.00013698,2]
[351910346,1738836638216,-247.76174579,0.00013698,2]
[351910347,1738836638226,-500.0,0.00013698,2]
[351910348,1738836638237,-500.0,0.00013698,2]
[351910349,1738836638246,-500.0,0.00013698,2]
[351910350,1738836638256,-500.0,0.00013698,2]
[351910351,1738836638265,-500.0,0.00013698,2]
[351910352,1738836638276,-500.0,0.00013698,2]
[351910353,1738836638285,-500.0,0.00013698,2]
[351910354,1738836638295,-500.0,0.00013698,2]
[351910355,1738836638305,-500.0,0.00013698,2]
[351910356,1738836638320,-500.0,0.00013698,2]
[351910357,1738836638329,-799.29,0.00013698,2]
[351910358,1738836638339,-500.0,0.00013698,2]
[351910359,1738836638349,-500.0,0.00013698,2]
[351910360,1738836638359,-352.4410277,0.00013698,2]
[351910361,1738836638369,-500.0,0.00013698,2]
[351910362,1738836638379,-500.0,0.00013698,2]
[351910363,1738836638389,-500.0,0.00013698,2]
[351910364,1738836638399,-500.0,0.00013698,2]
[351910365,1738836638409,-500.0,0.00013698,2]
[351910366,1738836638419,-500.0,0.00013698,2]
[351910367,1738836638429,-500.0,0.00013698,2]
[351910368,1738836638439,-504.7154657,0.00013698,2]
[351910369,1738836638450,-202.64735821,0.00013698,2]
[351910370,1738836638460,-500.0,0.00013698,2]
[351910371,1738836638470,-500.0,0.00013698,2]
[351910372,1738836638481,-500.0,0.00013698,2]
[351910373,1738836638491,-500.0,0.00013698,2]
[351910374,1738836638501,-157.539,0.00013698,2]
[351910375,1738836638511,-500.0,0.00013698,2]
[351910376,1738836638521,-500.0,0.00013698,2]
[351910377,1738836638532,-500.0,0.00013698,2]
[351910378,1738836638542,-500.0,0.00013698,2]
[351910379,1738836638552,-500.0,0.00013698,2]
[351910380,1738836638562,-500.0,0.00013698,2]
[351910381,1738836638571,-500.0,0.00013698,2]
[351910382,1738836638581,-741.91,0.00013698,2]
[351910383,1738836638590,-500.0,0.00013698,2]
[351910384,1738836638600,-500.0,0.00013698,2]
[351910385,1738836638610,-489.87987051,0.00013698,2]
[351910386,1738836638620,-500.0,0.00013698,2]
[351910387,1738836638630,-500.0,0.00013698,2]
[351910388,1738836638639,-500.0,0.00013698,2]
[351910389,1738836638649,-500.0,0.00013698,2]
[351910390,1738836638658,-500.0,0.00013698,2]
[351910391,1738836638668,-500.0,0.00013698,2]
[351910392,1738836638678,-500.0,0.00013698,2]
[351910393,1738836638692,-500.0,0.00013698,2]
[351910394,1738836638701,-500.0,0.00013698,2]
[351910395,1738836638711,-1268.65,0.00013698,2]
[351910396,1738836638721,-500.0,0.00013698,2]
[351910397,1738836638733,-500.0,0.00013698,2]
[351910398,1738836638742,-500.0,0.00013698,2]
[351910399,1738836638752,-500.0,0.00013698,2]
[351910400,1738836638763,-289.52397111,0.00013698,2]
[351910401,1738836638772,-705.78,0.00013698,2]
[351910402,1738836638782,-1230.27,0.00013698,2]
[351910403,1738836638792,-500.0,0.00013698,2]
[351910404,1738836638801,-616.06,0.00013698,2]
[351910405,1738836638811,-500.0,0.00013698,2]
[351910406,1738836638821,-500.0,0.00013698,2]
[351910407,1738836638831,-500.0,0.00013698,2]
[351910408,1738836638841,-500.0,0.00013698,2]
[351910409,1738836638853,-500.0,0.00013698,2]
[351910410,1738836638863,-500.0,0.00013698,2]
[351910411,1738836638873,-500.0,0.00013698,2]
[351910412,1738836638883,-500.0,0.00013698,2]
[351910413,1738836638893,-500.0,0.00013698,2]
[351910414,1738836638903,-500.0,0.00013698,2]
[351910415,1738836638913,-500.0,0.00013698,2]
[351910416,1738836638923,-921.08,0.00013698,2]
[351910417,1738836638933,-500.0,0.00013698,2]
[351910418,1738836638943,-500.0,0.00013698,2]
[351910419,1738836638953,-500.0,0.00013698,2]
[351910420,1738836638963,-500.0,0.00013698,2]
[351910421,1738836638972,-500.0,0.00013698,2]
[351910422,1738836638982,-500.0,0.00013698,2]
[351910423,1738836638991,-500.0,0.00013698,2]
[351910424,1738836639001,-500.0,0.00013698,2]
[351910425,1738836639010,-500.0,0.00013698,2]
[351910426,1738836639020,-500.0,0.00013698,2]
[351910427,1738836639029,-1149.32,0.00013698,2]
[351910428,1738836639039,-500.0,0.00013698,2]
[351910429,1738836639049,-500.0,0.00013698,2]
[351910430,1738836639059,-500.0,0.00013698,2]
[351910431,1738836639068,-272.9783568,0.00013698,2]
[351910432,1738836639078,-500.0,0.00013698,2]
[351910433,1738836639087,-500.0,0.00013698,2]
[351910434,1738836639098,-500.0,0.00013698,2]
[351910435,1738836639108,-1273.23,0.00013698,2]
[351910436,1738836639120,-500.0,0.00013698,2]
[351910437,1738836639130,-500.0,0.00013698,2]
[351910438,1738836639142,-500.0,0.00013698,2]
[351910439,1738836639152,-607.45,0.00013698,2]
[351910440,1738836639162,-500.0,0.00013698,2]
[351910441,1738836639173,-500.0,0.00013698,2]
[351910442,1738836639184,-500.0,0.00013698,2]
[351910443,1738836639194,-500.0,0.00013698,2]
[351910445,1738836639204,-500.0,0.00013698,2]
[351910446,1738836639215,-500.0,0.00013698,2]
[351910447,1738836639225,-500.0,0.00013698,2]
[351910448,1738836639235,-1506.93,0.00013698,2]
[351910449,1738836639244,-500.0,0.00013698,2]
[351910450,1738836639254,-500.0,0.00013698,2]
[351910451,1738836639263,-559.77,0.00013698,2]
[351910452,1738836639273,-1041.82,0.00013698,2]
[351910453,1738836639283,-500.0,0.00013698,2]
[351910455,1738836639296,-312.02886035,0.00013698,2]
[351910456,1738836639305,-500.0,0.00013698,2]
[351910457,1738836639315,-500.0,0.00013698,2]
[351910458,1738836639327,-500.0,0.00013698,2]
[351910459,1738836639339,-500.0,0.00013698,2]
[351910460,1738836639348,-500.0,0.00013698,2]
[351910461,1738836639360,-500.0,0.00013698,2]
[351910462,1738836639369,-500.0,0.00013698,2]
[351910463,1738836639379,-500.0,0.00013698,2]
[351910464,1738836639389,-500.0,0.00013698,2]
[351910465,1738836639399,-500.0,0.00013698,2]
[351910466,1738836639410,-500.0,0.00013698,2]
[351910467,1738836639419,-634.58,0.00013698,2]
[351910468,1738836639430,-582.14,0.00013698,2]
[351910469,1738836639440,-537.99358364,0.00013698,2]
[351910470,1738836639450,-292.16768748,0.00013698,2]
[351910472,1738836639460,-1010.59,0.00013698,2]
[351910474,1738836639469,-500.0,0.00013698,2]
[351910475,1738836639481,-500.0,0.00013698,2]
[351910476,1738836639491,-500.0,0.00013698,2]
[351910477,1738836639502,-1011.77,0.00013698,2]
[351910478,1738836639511,-500.0,0.00013698,2]
[351910479,1738836639522,-14018.14,0.00013698,2]
[351910480,1738836639531,-1419.36,0.00013698,2]
[351910482,1738836639541,-500.0,0.00013698,2]
[351910484,1738836639551,-500.0,0.00013698,2]
[351910486,1738836639561,-540.43,0.00013698,2]
[351910487,1738836639570,-3544.66,0.00013698,2]
[351910488,1738836639579,-500.0,0.00013698,2]
[351910489,1738836639589,-500.0,0.00013698,2]
[351910490,1738836639598,-1298.08,0.00013698,2]
[351910491,1738836639607,-1026.48,0.00013698,2]
[351910492,1738836639619,-7888.38,0.00013698,2]
[351910493,1738836639628,-1301.74,0.00013698,2]
[351910494,1738836639638,-3193.96,0.00013698,2]
[351910495,1738836639647,-500.0,0.00013698,2]
[351910497,1738836639848,-500.0,0.00013698,2]
[351910498,1738836639858,-500.0,0.00013698,2]
[351910499,1738836639868,-500.0,0.00013698,2]
[351910500,1738836639877,-500.0,0.00013698,2]
[351910502,1738836639888,-500.0,0.00013698,2]
[351910503,1738836639897,-500.0,0.00013698,2]
[351910504,1738836639907,-500.0,0.00013698,2]
[351910505,1738836639917,-500.0,0.00013698,2]
[351910506,1738836639926,-500.0,0.00013698,2]
[351910507,1738836639935,-500.0,0.00013698,2]
[351910508,1738836639944,-812.52,0.00013698,2]
[351910509,1738836639953,-500.0,0.00013698,2]
[351910510,1738836639962,-779.02,0.00013698,2]
[351910511,1738836639971,-1575.45,0.00013698,2]
[351910512,1738836639981,-500.0,0.00013698,2]
[351910513,1738836639990,-500.0,0.00013698,2]
[351910514,1738836640000,-4443.85,0.00013698,2]
[351910515,1738836640009,-1238.59,0.00013698,2]
[351910516,1738836640018,-500.0,0.00013698,2]
[351910517,1738836640027,-500.0,0.00013698,2]
[351910518,1738836640037,-500.0,0.00013698,2]
[351910519,1738836640046,-2318.01,0.00013698,2]
[351910520,1738836640055,-500.0,0.00013698,2]
[351910521,1738836640065,-500.0,0.00013698,2]
[351910522,1738836640074,-592.33,0.00013698,2]
[351910523,1738836640084,-592.33,0.00013698,2]
[351910524,1738836640093,-592.33,0.00013698,2]
[351910525,1738836640103,-592.33,0.00013698,2]
[351910526,1738836640112,-592.33,0.00013698,2]
[351910527,1738836640122,-592.33,0.00013698,2]
[351910528,1738836640131,-592.33,0.00013698,2]
[351910529,1738836640141,-592.33,0.00013698,2]
[351910530,1738836640150,-592.33,0.00013698,2]
[351910531,1738836640160,-592.33,0.00013698,2]
[351910532,1738836640170,-592.33,0.00013698,2]
[351910533,1738836640181,-592.33,0.00013698,2]
[351910534,1738836640191,-592.33,0.00013698,2]
[351910535,1738836640201,-592.33,0.00013698,2]
[351910536,1738836640210,-592.33,0.00013698,2]
[351910537,1738836640219,-592.33,0.00013698,2]
[351910538,1738836640229,-592.33,0.00013698,2]
[351910539,1738836640239,-592.33,0.00013698,2]
[351910540,1738836640249,-500.0,0.00013698,2]
[351910541,1738836640259,-592.33,0.00013698,2]
[351910542,1738836640269,-592.33,0.00013698,2]
[351910543,1738836640278,-16718.43148887,0.00013698,2]
[351910544,1738836640295,-21822.91851113,0.00013698,2]
[351910545,1738836640305,-592.33,0.00013698,2]
[351910546,1738836640314,-592.33,0.00013698,2]
[351910547,1738836640323,-1756.13,0.00013698,2]
[351910548,1738836640333,-592.33,0.00013698,2]
[351910549,1738836640343,-592.56,0.00013698,2]
[351910550,1738836640352,-5636.35,0.00013698,2]
[351910551,1738836640362,-500.0,0.00013698,2]
[351910552,1738836640372,-500.0,0.00013698,2]
[351910553,1738836640382,-500.0,0.00013698,2]
[351910554,1738836640391,-2218.26,0.00013698,2]
[351910555,1738836640400,-789.91,0.00013698,2]
[351910556,1738836640410,-16658.37,0.00013698,2]
[351910557,1738836640420,-1528.42,0.00013698,2]
[351910558,1738836640430,-500.0,0.00013698,2]
[351910559,1738836640439,-500.0,0.00013698,2]
[351910560,1738836640449,-1343.86,0.00013698,2]
[351910561,1738836640459,-500.0,0.00013698,2]
[351910562,1738836640468,-500.0,0.00013698,2]
[351910563,1738836640479,-591.08176997,0.00013698,2]
[351910564,1738836640488,-2210.45,0.00013698,2]
[351910565,1738836640498,-500.0,0.00013698,2]
[351910566,1738836640508,-500.0,0.00013698,2]
[351910567,1738836640517,-640.14,0.00013698,2]
[351910568,1738836640527,-1519.87,0.00013698,2]
[351910569,1738836640537,-1119.66,0.00013698,2]
[351910570,1738836640547,-500.0,0.00013698,2]
[351910571,1738836640556,-500.0,0.00013698,2]
[351910572,1738836640565,-1367.52,0.00013698,2]
[351910573,1738836640575,-653.11,0.00013698,2]
[351910574,1738836640585,-662.72,0.00013698,2]
[351910575,1738836640595,-500.0,0.00013698,2]
[351910576,1738836640604,-500.0,0.00013698,2]
[351910577,1738836640614,-500.0,0.00013698,2]
[351910578,1738836640624,-500.0,0.00013698,2]
[351910579,1738836640635,-500.0,0.00013698,2]
[351910580,1738836640644,-841.31,0.00013698,2]
[351910581,1738836640654,-500.0,0.00013698,2]
[351910582,1738836640664,-500.0,0.00013698,2]
[351910583,1738836640674,-188.39081049,0.00013698,2]
[351910584,1738836640688,-500.0,0.00013698,2]
[351910585,1738836640697,-500.0,0.00013698,2]
[351910586,1738836640707,-500.0,0.00013698,2]
[351910587,1738836640717,-500.0,0.00013698,2]
[351910588,1738836640727,-3472.17,0.00013698,2]
[351910589,1738836640736,-3595.31,0.00013698,2]
[351910590,1738836640746,-500.0,0.00013698,2]
[351910591,1738836640756,-3185.96,0.00013698,2]
[351910592,1738836640767,-759.29,0.00013698,2]
[351910593,1738836640777,-500.0,0.00013698,2]
[351910594,1738836640787,-810.62,0.00013698,2]
[351910595,1738836640797,-1580.08,0.00013698,2]
[351910596,1738836640806,-500.0,0.00013698,2]
[351910597,1738836640817,-9132.91,0.00013698,2]
[351910598,1738836640827,-500.0,0.00013698,2]
[351910599,1738836640836,-1634.36,0.00013698,2]
[351910600,1738836640846,-500.0,0.00013698,2]
[351910601,1738836640856,-500.0,0.00013698,2]
[351910602,1738836640866,-715.9,0.00013698,2]
[351910603,1738836640875,-1821.59,0.00013698,2]
[351910604,1738836640885,-500.0,0.00013698,2]
[351910605,1738836640895,-500.0,0.00013698,2]
[351910606,1738836640904,-796.64,0.00013698,2]
[351910607,1738836640914,-500.0,0.00013698,2]
[351910608,1738836640924,-500.0,0.00013698,2]
[351910609,1738836640934,-500.0,0.00013698,2]
[351910610,1738836640944,-1348.98,0.00013698,2]
[351910611,1738836640953,-500.0,0.00013698,2]
[351910612,1738836640963,-312.37,0.00013698,2]
[351910613,1738836640973,-248.77942215,0.00013698,2]
[351910614,1738836640982,-500.0,0.00013698,2]
[351910615,1738836640991,-500.0,0.00013698,2]
[351910616,1738836641001,-500.0,0.00013698,2]
[351910617,1738836641011,-500.0,0.00013698,2]
[351910618,1738836641021,-3205.51,0.00013698,2]
[351910619,1738836641030,-528.5,0.00013698,2]
[351910620,1738836641040,-534.02,0.00013698,2]
[351910621,1738836641051,-500.0,0.00013698,2]
[351910622,1738836641060,-500.0,0.00013698,2]
[351910623,1738836641070,-635.96,0.00013698,2]
[351910624,1738836641079,-2118.22,0.00013698,2]
[351910625,1738836641088,-500.0,0.00013698,2]
[351910626,1738836641098,-674.28,0.00013698,2]
[351910627,1738836641107,-640.47,0.00013698,2]
[351910628,1738836641117,-1989.35,0.00013698,2]
[351910629,1738836641126,-500.0,0.00013698,2]
[351910630,1738836641137,-246.797924,0.00013699,2]
[351910631,1738836641146,-872.060371,0.00013699,2]
[351910632,1738836641156,-500.0,0.00013699,2]
[351910633,1738836641165,-500.0,0.00013699,2]
[351910634,1738836641174,-500.0,0.00013699,2]
[351910635,1738836641184,-500.0,0.00013699,2]
[351910636,1738836641194,-500.0,0.00013699,2]
[351910637,1738836641203,-500.0,0.00013699,2]
[351910638,1738836641212,-500.0,0.00013699,2]
[351910639,1738836641221,-500.0,0.00013699,2]
[351910640,1738836641231,-500.0,0.00013699,2]
[351910641,1738836641240,-500.0,0.00013699,2]
[351910642,1738836641249,-500.0,0.00013699,2]
[351910643,1738836641258,-500.0,0.00013699,2]
[351910644,1738836641267,-500.0,0.00013699,2]
[351910645,1738836641277,-500.0,0.00013699,2]
[351910646,1738836641287,-500.0,0.00013699,2]
[351910647,1738836641297,-500.0,0.00013699,2]
[351910648,1738836641306,-500.0,0.00013699,2]
[351910649,1738836641315,-500.0,0.00013699,2]
[351910650,1738836641325,-500.0,0.00013699,2]
[351910651,1738836641334,-500.0,0.00013699,2]
[351910652,1738836641343,-500.0,0.00013699,2]
[351910653,1738836641353,-500.0,0.00013699,2]
[351910654,1738836641362,-500.0,0.00013699,2]
[351910655,1738836641372,-500.0,0.00013699,2]
[351910656,1738836641382,-500.0,0.00013699,2]
[351910657,1738836641392,-500.0,0.00013699,2]
[351910658,1738836641401,-500.0,0.00013699,2]
[351910659,1738836641410,-500.0,0.00013699,2]
[351910660,1738836641419,-500.0,0.00013699,2]
[351910661,1738836641429,-500.0,0.00013699,2]
[351910662,1738836641438,-500.0,0.00013699,2]
[351910663,1738836641448,-354.6875562,0.000137,2]
[351910664,1738836641458,-178.7979496,0.00013834,2]
[351910665,1738836641467,-500.0,0.00013834,2]
[351910666,1738836641476,-500.0,0.00013834,2]
[351910667,1738836641485,-500.0,0.00013834,2]
[351910668,1738836641495,-387.67092734,0.00013834,2]
[351910669,1738836641505,-500.0,0.00013835,2]
[351910670,1738836641514,-500.0,0.00013835,2]
[351910671,1738836641524,-500.0,0.00013835,2]
[351910672,1738836641534,-668.49,0.00013835,2]
[351910673,1738836641544,-500.0,0.00013835,2]
[351910674,1738836641553,-500.0,0.00013835,2]
[351910675,1738836641563,-500.0,0.00013835,2]
[351910676,1738836641573,-500.0,0.00013835,2]
[351910677,1738836641582,-500.0,0.00013835,2]
[351910678,1738836641597,-500.0,0.00013835,2]
[351910679,1738836641609,-500.0,0.00013835,2]
[351910680,1738836641622,-799.29,0.00013835,2]
[351910681,1738836641636,-500.0,0.00013835,2]
[351910682,1738836641649,-500.0,0.00013835,2]
[351910683,1738836641666,-500.0,0.00013835,2]
[351910684,1738836641679,-500.0,0.00013835,2]
[351910685,1738836641694,-500.0,0.00013835,2]
[351910686,1738836641706,-500.0,0.00013835,2]
[351910687,1738836641718,-500.0,0.00013835,2]
[351910688,1738836641730,-500.0,0.00013835,2]
[351910689,1738836641742,-389.23331639,0.00013835,2]
[351910690,1738836641754,-500.0,0.00013835,2]
[351910691,1738836641768,-500.0,0.00013835,2]
[351910692,1738836641780,-500.0,0.00013835,2]
[351910693,1738836641792,-500.0,0.00013835,2]
[351910694,1738836641804,-500.0,0.00013835,2]
[351910695,1738836641816,-500.0,0.00013835,2]
[351910696,1738836641830,-741.91,0.00013835,2]
[351910697,1738836641841,-500.0,0.00013835,2]
[351910698,1738836641852,-500.0,0.00013835,2]
[351910699,1738836641864,-500.0,0.00013835,2]
[351910700,1738836641875,-500.0,0.00013835,2]
[351910701,1738836641887,-500.0,0.00013835,2]
[351910702,1738836641898,-500.0,0.00013835,2]
[351910703,1738836641911,-500.0,0.00013835,2]
[351910704,1738836641923,-500.0,0.00013835,2]
[351910705,1738836641935,-1268.65,0.00013835,2]
[351910706,1738836641947,-500.0,0.00013835,2]
[351910707,1738836641958,-500.0,0.00013835,2]
[351910708,1738836641968,-500.0,0.00013835,2]
[351910709,1738836641978,-705.78,0.00013835,2]
[351910710,1738836641990,-1230.27,0.00013835,2]
[351910711,1738836642001,-500.0,0.00013835,2]
[351910712,1738836642013,-616.06,0.00013835,2]
[351910713,1738836642025,-500.0,0.00013835,2]
[351910714,1738836642037,-500.0,0.00013835,2]
[351910715,1738836642050,-500.0,0.00013835,2]
[351910716,1738836642061,-500.0,0.00013835,2]
[351910717,1738836642074,-500.0,0.00013835,2]
[351910718,1738836642086,-921.08,0.00013835,2]
[351910719,1738836642099,-500.0,0.00013835,2]
[351910720,1738836642112,-500.0,0.00013835,2]
[351910721,1738836642124,-500.0,0.00013835,2]
[351910722,1738836642137,-500.0,0.00013835,2]
[351910723,1738836642148,-500.0,0.00013835,2]
[351910724,1738836642158,-500.0,0.00013835,2]
[351910725,1738836642168,-1149.32,0.00013835,2]
[351910726,1738836642179,-500.0,0.00013835,2]
[351910727,1738836642189,-500.0,0.00013835,2]
[351910728,1738836642201,-500.0,0.00013835,2]
[351910729,1738836642213,-500.0,0.00013835,2]
[351910730,1738836642226,-1273.23,0.00013835,2]
[351910731,1738836642238,-500.0,0.00013835,2]
[351910732,1738836642249,-607.45,0.00013835,2]
[351910733,1738836642259,-500.0,0.00013835,2]
[351910734,1738836642270,-500.0,0.00013835,2]
[351910735,1738836642280,-500.0,0.00013835,2]
[351910736,1738836642292,-500.0,0.00013835,2]
[351910737,1738836642305,-500.0,0.00013835,2]
[351910738,1738836642316,-1506.93,0.00013835,2]
[351910739,1738836642327,-500.0,0.00013835,2]
[351910740,1738836642337,-559.77,0.00013835,2]
[351910741,1738836642347,-1041.82,0.00013835,2]
[351910742,1738836642358,-500.0,0.00013835,2]
[351910744,1738836642368,-500.0,0.00013835,2]
[351910746,1738836642379,-500.0,0.00013835,2]
[351910748,1738836642390,-500.0,0.00013835,2]
[351910750,1738836642401,-500.0,0.00013835,2]
[351910752,1738836642411,-500.0,0.00013835,2]
[351910755,1738836642424,-634.58,0.00013835,2]
[351910757,1738836642434,-582.14,0.00013835,2]
[351910759,1738836642445,-1010.59,0.00013835,2]
[351910761,1738836642456,-500.0,0.00013835,2]
[351910763,1738836642466,-500.0,0.00013835,2]
[351910765,1738836642479,-500.0,0.00013835,2]
[351910768,1738836642490,-1011.77,0.00013835,2]
[351910772,1738836642501,-500.0,0.00013835,2]
[351910776,1738836642512,-14018.14,0.00013835,2]
[351910780,1738836642523,-1419.36,0.00013835,2]
[351910783,1738836642534,-500.0,0.00013835,2]
[351910787,1738836642544,-500.0,0.00013835,2]
[351910790,1738836642555,-540.43,0.00013835,2]
[351910794,1738836642567,-3544.66,0.00013835,2]
[351910796,1738836642582,-500.0,0.00013835,2]
[351910798,1738836642593,-500.0,0.00013835,2]
[351910800,1738836642604,-1298.08,0.00013835,2]
[351910802,1738836642616,-1026.48,0.00013835,2]
[351910803,1738836642630,-7888.38,0.00013835,2]
[351910804,1738836642642,-1301.74,0.00013835,2]
[351910805,1738836642655,-3193.96,0.00013835,2]
[351910806,1738836642666,-500.0,0.00013835,2]
[351910808,1738836642676,-500.0,0.00013835,2]
[351910810,1738836642692,-500.0,0.00013835,2]
[351910812,1738836642703,-500.0,0.00013835,2]
[351910814,1738836642714,-500.0,0.00013835,2]
[351910816,1738836642725,-500.0,0.00013835,2]
[351910818,1738836642735,-500.0,0.00013835,2]
[351910819,1738836642746,-500.0,0.00013835,2]
[351910820,1738836642758,-500.0,0.00013835,2]
[351910821,1738836642770,-812.52,0.00013835,2]
[351910822,1738836642782,-500.0,0.00013835,2]
[351910823,1738836642792,-779.02,0.00013835,2]
[351910824,1738836642804,-1575.45,0.00013835,2]
[351910825,1738836642815,-500.0,0.00013835,2]
[351910826,1738836642826,-4443.85,0.00013835,2]
[351910827,1738836642837,-1238.59,0.00013835,2]
[351910828,1738836642848,-500.0,0.00013835,2]
[351910829,1738836642859,-500.0,0.00013835,2]
[351910830,1738836642870,-2318.01,0.00013835,2]
[351910831,1738836642881,-500.0,0.00013835,2]
[351910832,1738836642893,-616.8449243,0.00013835,2]
[351910833,1738836642904,-500.0,0.00013835,2]
[351910834,1738836642915,-38541.35,0.00013835,2]
[351910835,1738836642926,-1756.13,0.00013835,2]
[351910836,1738836642937,-5636.35,0.00013835,2]
[351910837,1738836642948,-500.0,0.00013835,2]
[351910838,1738836642958,-500.0,0.00013835,2]
[351910840,1738836642969,-500.0,0.00013835,2]
[351910841,1738836642979,-2218.26,0.00013835,2]
[351910842,1738836642991,-789.91,0.00013835,2]
[351910843,1738836643001,-16658.37,0.00013835,2]
[351910844,1738836643012,-1528.42,0.00013835,2]
[351910845,1738836643023,-560.15,0.00013835,2]
[351910846,1738836643033,-500.0,0.00013835,2]